Cogmind - Beta 10.2 *** ADVENTURER MODE // 2021.09.21 @ 18:17:41 Player: Apothem Result: Destroyed by S-27 Virus with Autogun Performance ------------- Evolutions (4) 2000 Regions Visited (5) 1000 Robots Destroyed (65) 325 Value Destroyed (2036) 2036 Prototype IDs (9) 180 Alien Tech Used (0) 0 Bonus (80) 80 TOTAL SCORE: 5621 Bonus ------- High Alert Combat Kills 80 Cogmind --------- Core Integrity 0/850 Matter 279/300 Energy 40/100 System Corruption 0% Temperature Cool (0) Movement Core (50) Location -6/Factory Parts ------- > --- POWER (3) -------- (None) > --- PROPULSION (5) --- (None) > --- UTILITY (5) ------ Weight Redist. System Improved Signal Interpreter > --- WEAPON (2) ------- (None) > --- INVENTORY (4) ---- Wheel Medium Storage Unit Magnetic Acceleration Cannon Peak State ------------ > --- POWER ------------ Light Deuterium Engine Improved Deuterium Engine Light Angular Momentum Engine > --- PROPULSION ------- Improved Flight Unit Xenon Bombardment Thruster Xenon Bombardment Thruster Improved Cesium-ion Thruster Cooled VTOL Module > --- UTILITY ---------- Coolant Injector Medium Storage Unit Weight Redist. System Improved Signal Interpreter Improved Light Armor Plating > --- WEAPON ----------- Gatling Laser Improved Assault Rifle > --- INVENTORY -------- Light Angular Momentum Engine Cesium-ion Thruster Compact Battery Advanced Beam Cannon Plasma Cannon Flak Cannon Gauss Cannon [Rating: 54] Favorites ----------- Power Light Ion Engine Engine Light Ion Engine Power Core Light Nuclear Core Propulsion Improved Flight Unit Wheel Wheel Flight Unit Improved Flight Unit Utility Medium Storage Unit Device Weight Redist. System Storage Medium Storage Unit Processor Improved Signal Interpreter Protection Light Armor Plating Weapon Improved Assault Rifle Energy Gun EM Pulse Gun Energy Cannon EM Pulse Cannon Ballistic Gun Improved Assault Rifle Ballistic Cannon Flak Cannon Build | -11 -10 -9 -8 -7 -6 ------- Run | Scr Mat Mat Mat Fac Fac Slots Evolved 8 | . . 2 2 2 2 Power 2 | . . . 1 . 1 Propulsion 3 | . . . 1 1 1 Utility 3 | . . 2 . 1 . Weapon . | . . . . . . Parts Attached 78 | 4 3 17 11 28 15 Power 25 | 1 . 2 6 11 5 Engine 21 | 1 . 2 5 9 4 Core 4 | . . . 1 2 1 Reactor . | . . . . . . Propulsion 16 | 2 . 3 2 6 3 Treads . | . . . . . . Leg . | . . . . . . Wheel 3 | 2 . 1 . . . Hover . | . . . . . . Flight 13 | . . 2 2 6 3 Utility 19 | . 2 6 2 7 2 Device 8 | . . 4 1 2 1 Storage 6 | . 1 . . 4 1 Processor 2 | . . 1 1 . . Hackware . | . . . . . . Protection 3 | . 1 1 . 1 . Artifact . | . . . . . . Weapon 18 | 1 1 6 1 4 5 Energy Gun 6 | 1 1 1 . 3 . Energy Cannon 5 | . . 1 1 . 3 Ballistic Gun 5 | . . 4 . 1 . Ballistic Cannon 2 | . . . . . 2 Launcher . | . . . . . . Special Weapon . | . . . . . . Impact Weapon . | . . . . . . Slashing Weapon . | . . . . . . Piercing Weapon . | . . . . . . Special Melee Weapon . | . . . . . . Unidentified Prototypes 6 | . . 2 . 4 . Parts Lost 40 | . . 5 5 8 22 Power 10 | . . . 2 3 5 Propulsion 9 | . . 1 1 . 7 Utility 10 | . . 3 1 2 4 Weapon 11 | . . 1 1 3 6 Highest Loss Streak 21 | . . 2 3 2 21 Average Slot Usage (%) 90 | . 78 92 96 93 70 Engine 9 | . 14 11 16 7 8 Core 2 | . . . . 4 . Wheel 6 | . 28 17 . . . Flight 20 | . . 3 26 30 23 Device 13 | . . 10 16 16 12 Storage 9 | . 3 11 9 8 6 Processor 6 | . . 7 9 7 6 Protection 4 | . 9 9 . 1 3 Energy Gun 8 | . 21 9 5 7 3 Energy Cannon 1 | . . . 2 1 . Ballistic Gun 6 | . . 12 9 4 2 Naked Turns . | . . . . . . Heaviest Build 40 | 5 18 25 27 40 38 Greatest Support 40 | 26 26 26 24 33 40 Greatest Overweight (x) 4 | 1 . 2 1 1 4 Average Overweight (x) . | . . . . . . Largest Inventory Capacity 12 | 4 8 8 8 12 8 Average Capacity 7 | 4 4 8 8 8 7 Most Carried 10 | 4 4 8 8 10 8 Average Carried 7 | 3 3 7 7 7 5 Final Capacity 8 | 4 8 8 8 8 4 Final Carried 8 | 4 2 8 7 8 3 Class Distribution -------------------- 48% | Scavenger-Sprinter 33% | Mutant 17% | Sprinter Dominant Class ---------------- Mutant | -10/Materials Mutant | -9/Materials Sprinter | -8/Materials Scavenger-Sprinter | -7/Factory Mutant | -6/Factory Resources | -11 -10 -9 -8 -7 -6 ----------- Run | Scr Mat Mat Mat Fac Fac Matter Collected 1399 | 216 23 468 176 375 141 Remotely . | . . . . . . Salvage Created 2635 | . 23 1103 546 755 208 Parts 141 | . . 63 36 37 5 Haulers Intercepted 6 | . . 2 1 2 1 Recyclers Shooed 1 | . . . . . 1 Parts Field Recycled . | . . . . . . Retrieved Matter . | . . . . . . Parts Self-Destructed . | . . . . . . Prevented . | . . . . . . Kills | -11 -10 -9 -8 -7 -6 ------- Run | Scr Mat Mat Mat Fac Fac Combat Hostiles Destroyed 46 | . . 23 11 8 4 Guns 37 | . . 23 8 5 1 Cannons 6 | . . . 1 2 3 AOE 2 | . . . 2 . . Classes Destroyed 10 | . 1 6 . 3 . Builder 1 | . . . . 1 . Hauler 6 | . . 2 1 2 1 Recycler 1 | . . . . 1 . Operator 2 | . . 1 1 . . Watcher 9 | . 1 3 1 4 . Swarmer 9 | . . 3 4 . 2 Grunt 22 | . . 14 4 3 1 Duelist 3 | . . 2 . 1 . Sentry 9 | . . 4 3 2 . Programmer 3 | . . . . 2 1 Best Kill Streak 9 | . 1 9 6 2 2 Combat Bots Only 7 | . . 7 6 2 2 Max Kills in Single Turn 3 | . 1 2 3 2 1 Gunslinging 1 | . . 1 . . . Exploded 2 | . . . 2 . . Melee . | . . . . . . Uniques/NPCs Destroyed . | . . . . . . Combat | -11 -10 -9 -8 -7 -6 -------- Run | Scr Mat Mat Mat Fac Fac Damage Taken 4164 | . . 738 540 618 2268 Core 1129 | . . 99 88 84 858 Absorbed by Shields . | . . . . . . Core Remaining (%) 89 | 100 100 75 84 88 . Volleys Fired 194 | . 3 74 37 53 27 Largest 2 | . 2 2 2 2 2 Hottest 103 | . 80 80 86 88 103 Shots Fired 347 | . 6 137 72 97 35 Gun 309 | . 6 137 63 84 19 Cannon 38 | . . . 9 13 16 Launcher . | . . . . . . Special . | . . . . . . Kinetic 182 | . . 85 37 39 21 Thermal 59 | . . . . 45 14 Explosive . | . . . . . . Electromagnetic 106 | . 6 52 35 13 . Robot Hit Streak 31 | . 2 31 19 15 17 Robot Miss Streak 5 | . 1 2 2 2 5 Penetration Max . | . . . . . . Secondary Targets 6 | . . 4 2 . . Max Gunslinging Chain 1 | . . 1 1 . . Shots Hit Robots 283 | . 3 113 60 76 31 Core Hits 128 | . 1 51 30 30 16 Critical Hits 1 | . . . 1 . . Critical Kills 1 | . . . 1 . . Critical Parts Destroyed . | . . . . . . Melee Attacks . | . . . . . . Impact . | . . . . . . Slashing . | . . . . . . Piercing . | . . . . . . Sneak Attacks . | . . . . . . Combat Hostiles . | . . . . . . Follow-up Attacks . | . . . . . . Damage Inflicted 5040 | . 117 1597 1208 1390 728 Guns 4166 | . 84 1597 864 1164 457 Cannons 703 | . . . 206 226 271 Explosions 171 | . 33 . 138 . . Melee . | . . . . . . Ramming . | . . . . . . Kinetic 2364 | . . 1098 433 492 341 Thermal 1230 | . 33 . 138 672 387 Explosive . | . . . . . . Electromagnetic 1446 | . 84 499 637 226 . Impact . | . . . . . . Slashing . | . . . . . . Piercing . | . . . . . . Highest Corruption 1 | . . 1 . . . Average Corruption 1 | . . 1 . . . Corruption Purged . | . . . . . . Effects 2 | . . 2 . . . Data Loss (minor) 1 | . . 1 . . . Targeting Errors 1 | . . 1 . . . Overload Shots . | . . . . . . Overflow Damage 28 | . 3 . 19 . 6 Projectiles 25 | . . . 19 . 6 Explosions 3 | . 3 . . . . Melee . | . . . . . . Knockbacks 4 | . . . . . 4 Impact . | . . . . . . Kinetic 4 | . . . . . 4 Secondary . | . . . . . . Self-Inflicted Damage . | . . . . . . Shots . | . . . . . . Rammed . | . . . . . . Targets Rammed . | . . . . . . Kicked . | . . . . . . Crushed . | . . . . . . Highest Temperature 199 | . 81 176 195 128 199 Average Temperature 69 | . 43 42 68 56 113 Received Heat Transfer 1131 | . . 384 297 249 201 Siege Activations . | . . . . . . Robots Corrupted . | . . . . . . Combat Hostiles . | . . . . . . Parts Fried 5 | . 1 3 1 . . Impact Corruptions . | . . . . . . Robots Melted 1 | . . . . 1 . Combat Hostiles 1 | . . . . 1 . Parts Melted 5 | . . . . 4 1 Heat Transferred 2245 | . 50 . 100 1295 800 Parts Sabotaged . | . . . . . . Parts Stolen . | . . . . . . Parts Stripped . | . . . . . . Power Chain Reactions 4 | . 1 . 3 . . Missiles Intercepted . | . . . . . . Alert | -11 -10 -9 -8 -7 -6 ------- Run | Scr Mat Mat Mat Fac Fac Peak Influence 750 | . 28 368 529 750 330 Initial 202 | . . 9 132 202 152 Average 325 | . 3 216 307 454 247 Maximum Alert Level 3 | . . 1 2 3 1 Low Security (%) 23 | 100 100 37 33 . 31 Level 1 47 | . . 62 38 43 68 Level 2 26 | . . . 28 49 . Level 3 3 | . . . . 7 . Level 4 . | . . . . . . Level 5 . | . . . . . . High Security . | . . . . . . Max Security . | . . . . . . Squads Dispatched 10 | . . 2 1 4 3 Investigation 1 | . . 1 . . . Extermination 3 | . . . . 3 . Reinforcement 4 | . . 1 1 . 2 Assault . | . . . . . . Garrison 2 | . . . . 1 1 Intercept . | . . . . . . Construction Impeded . | . . . . . . Haulers Reinforced 1 | . . . . . 1 Stealth | -11 -10 -9 -8 -7 -6 --------- Run | Scr Mat Mat Mat Fac Fac Distress Signals 5 | . . 2 1 1 1 Communications Jammed . | . . . . . . Distress Signals . | . . . . . . Times Spotted 111 | . 3 35 21 21 31 Peak Tracking Total 14 | . 2 5 7 6 14 Tactical Retreats 15 | . . 3 3 5 4 Traps | -11 -10 -9 -8 -7 -6 ------- Run | Scr Mat Mat Mat Fac Fac Traps Triggered 4 | . . 3 . . 1 Indirectly . | . . . . . . Trap Hack Attempts . | . . . . . . Triggered . | . . . . . . Disarmed . | . . . . . . Reprogrammed . | . . . . . . Reused . | . . . . . . Traps Extracted . | . . . . . . Installed . | . . . . . . Triggered . | . . . . . . Machines | -11 -10 -9 -8 -7 -6 ---------- Run | Scr Mat Mat Mat Fac Fac Machines Disabled 4 | . . 3 1 . . Max in Single Turn 1 | . . 1 1 . . Machines Sabotaged . | . . . . . . Garrisons Compromised . | . . . . . . Overloaded Fab Kills . | . . . . . . Fab Network Shutdowns 1 | . . . . 1 . Hacking | -11 -10 -9 -8 -7 -6 --------- Run | Scr Mat Mat Mat Fac Fac Machines Accessed 18 | . 2 5 1 10 . Terminals 13 | . 2 4 1 6 . Fabricators 1 | . . . . 1 . Repair Stations 1 | . . . . 1 . Recycling Units 2 | . . . . 2 . Scanalyzers 1 | . . 1 . . . Garrison Access . | . . . . . . Total Hacks 54 | . 9 20 3 22 . Successful 38 | . 6 17 3 12 . Failed 16 | . 3 3 . 10 . Catastrophic 1 | . . . . 1 . Database Lockouts . | . . . . . . Manual . | . . . . . . Terminals 46 | . 9 18 3 16 . Fabricators 1 | . . . . 1 . Repair Stations 2 | . . . . 2 . Recycling Units 3 | . . . . 3 . Scanalyzers 2 | . . 2 . . . Garrison Access . | . . . . . . Terminal Hacks 34 | . 6 15 3 10 . Record 6 | . . 6 . . . Robot Analysis 2 | . 1 1 . . . Prototype ID Bank 2 | . 1 . . 1 . Branch Access Points 1 | . 1 . . . . Emergency Access Points 4 | . 1 . 1 2 . Scanalyzer Index 1 | . . . . 1 . Alert Level 1 | . . 1 . . . Unreport Threat 4 | . . 3 . 1 . Locate Traps 3 | . . . . 3 . Dispatch Records 2 | . 2 . . . . Security Status 2 | . . . 1 1 . Hauler Manifests 3 | . . 2 1 . . Registered Components 2 | . . 1 . 1 . Zone Layout 1 | . . 1 . . . Fabricator Hacks 1 | . . . . 1 . Build 1 | . . . . 1 . Repair Station Hacks . | . . . . . . Recycling Unit Hacks 1 | . . . . 1 . Report Inventory 1 | . . . . 1 . Scanalyzer 2 | . . 2 . . . Insert Component 1 | . . 1 . . . Analyze 1 | . . 1 . . . Garrison Access Hacks . | . . . . . . Unauthorized Hacks . | . . . . . . Terminals . | . . . . . . Fabricators . | . . . . . . Repair Stations . | . . . . . . Recycling Units . | . . . . . . Scanalyzers . | . . . . . . Garrison Access . | . . . . . . Data Cores Recovered . | . . . . . . Used . | . . . . . . Hacking Detections 13 | . 2 3 1 7 . Full Trace Events . | . . . . . . Feedback Events . | . . . . . . Feedback Blocked . | . . . . . . Robot Schematics Acquired . | . . . . . . Robots Built . | . . . . . . Matter . | . . . . . . Time . | . . . . . . Total Robot Build Rating . | . . . . . . Part Schematics Acquired 1 | . . 1 . . . Parts Built 2 | . . . . 2 . Matter 190 | . . . . 190 . Time 95 | . . . . 95 . Total Part Build Rating 10 | . . . . 10 . Parts Repaired . | . . . . . . Time . | . . . . . . Parts Recycled . | . . . . . . Recycled Matter . | . . . . . . Retrieved Matter . | . . . . . . Retrieved Components . | . . . . . . Parts Scanalyzed 1 | . . 1 . . . Part Schematics Acquired 1 | . . 1 . . . Parts Damaged . | . . . . . . Bothacking | -11 -10 -9 -8 -7 -6 ------------ Run | Scr Mat Mat Mat Fac Fac Used RIF Installer . | . . . . . . Robots Hacked . | . . . . . . Non-combat . | . . . . . . Combat . | . . . . . . Robot Hacks Applied . | . . . . . . Relay Couplers Released . | . . . . . . Robots Rewired . | . . . . . . Allies Hacked . | . . . . . . Hacks Repelled . | . . . . . . Allies | -11 -10 -9 -8 -7 -6 -------- Run | Scr Mat Mat Mat Fac Fac Total Allies . | . . . . . . Largest Group . | . . . . . . Highest-Rated Group . | . . . . . . Highest-Rated Ally . | . . . . . . Total Orders . | . . . . . . Ally Attacks . | . . . . . . Total Damage . | . . . . . . Kills . | . . . . . . Allies Corrupted . | . . . . . . Allies Melted . | . . . . . . Intel | -11 -10 -9 -8 -7 -6 ------- Run | Scr Mat Mat Mat Fac Fac Robot Analysis Total 2 | . 1 1 . . . Derelict Logs Recovered . | . . . . . . Drone Launches . | . . . . . . Drone Recoveries . | . . . . . . Exploration | -11 -10 -9 -8 -7 -6 ------------- Run | Scr Mat Mat Mat Fac Fac Turns Passed 2952 | 42 159 794 317 1383 257 Spaces Moved 3034 | 44 162 586 312 1462 468 Core 62 | 24 . . . . 38 Treads . | . . . . . . Legs . | . . . . . . Wheels 685 | 20 162 503 . . . Hover . | . . . . . . Flight 2287 | . . 83 312 1462 430 Fastest Speed 25 | 50 90 32 29 26 25 Average Speed 44 | 71 90 82 41 28 30 Slowest Speed 250 | 100 90 110 102 101 250 Overloaded Moves . | . . . . . . Propulsion Burnouts . | . . . . . . Robots Hopped 17 | . . 1 . 10 6 Cave-ins Triggered . | . . . . . . Exploration Rate (%) 27 | 3 27 47 31 38 16 Regions Visited 5 Branch Regions . Pre-discovered Areas . | . . . . . . Known Exits Taken 3 | . . 1 1 1 . Unknown Exits Taken 2 | 1 1 . . . . Scrap Searched . | . . . . . . Spaces Dug . | . . . . . . Terrain Destroyed 10 | . 3 . 6 . 1 Melee . | . . . . . . Projectile 1 | . . . . . 1 AOE 9 | . 3 . 6 . . Terrain Rammed . | . . . . . . Walls Destroyed . | . . . . . . Machines Disabled . | . . . . . . Actions | -11 -10 -9 -8 -7 -6 --------- Run | Scr Mat Mat Mat Fac Fac Total 4264 | 52 169 755 425 2323 540 Wait 900 | . . 54 60 760 26 Move 2999 | 43 161 583 311 1443 458 Hop 13 | . . 1 . 8 4 Pick Up 44 | 5 1 16 3 13 6 Fast Attach 25 | 3 1 5 5 11 . Attach 35 | 1 2 5 4 8 15 Detach 6 | . . . . 2 4 Swap 18 | . . 7 2 9 . Drop 30 | . 1 10 3 16 . Fire 194 | . 3 74 37 53 27 Melee . | . . . . . . Ram . | . . . . . . Kick . | . . . . . . Crush . | . . . . . . Escape Stasis . | . . . . . . Rewire . | . . . . . . Trap . | . . . . . . Miscellaneous . | . . . . . . Route ------- -11/Scrapyard -10/Materials (discovered 2 exits: *Mat / Min) -9/Materials (discovered 4 exits: *Mat / *Min x2 / *Sto) -8/Materials -7/Factory (discovered 2 exits: *Fac x2) -6/Factory History --------- Turn | Location | Event 5 | -11/Scrapyard | Discovered new exit (range 16) 43 | -11/Scrapyard | Entered Materials 175 | -10/Materials | Discovered new exit (range 15) 184 | -10/Materials | Identified exit to Mines 202 | -10/Materials | Entered another Materials area 202 | -9/Materials | Evolved 2 slots: Utility x2 256 | -9/Materials | Discovered new exit (range 13) 300 | -9/Materials | Build established: Mutant 462 | -9/Materials | Identified exit to Mines 592 | -9/Materials | Discovered exit to Mines (range 15) 792 | -9/Materials | Destroyed 7 combat bots 915 | -9/Materials | Discovered new exit (range 15) 936 | -9/Materials | Identified exit to Storage 968 | -9/Materials | Discovered new exit (range 15) 989 | -9/Materials | Identified exit to Materials 996 | -9/Materials | Entered another Materials area 996 | -8/Materials | Evolved 2 slots: Power x1, Propulsion x1 1240 | -8/Materials | Lost 3 parts (1p1u1w) 1312 | -8/Materials | Discovered new exit (range 6) 1313 | -8/Materials | Identified exit to Factory 1313 | -8/Materials | Entered Factory 1313 | -7/Factory | Evolved 2 slots: Propulsion x1, Utility x1 1541 | -7/Factory | Build established: Scavenger-Sprinter 1616 | -7/Factory | Local fabrication network quarantined 1633 | -7/Factory | Fabricated Energy Well? 2373 | -7/Factory | Garrison activated, responded to threat 2629 | -7/Factory | Discovered new exit (range 9) 2631 | -7/Factory | Identified exit to Factory 2695 | -7/Factory | Discovered exit to Factory (range 4) 2696 | -7/Factory | Entered another Factory area 2696 | -6/Factory | Evolved 2 slots: Power x1, Propulsion x1 2728 | -6/Factory | Garrison activated, responded to threat 2899 | -6/Factory | Core integrity fell below 50% 2936 | -6/Factory | Core integrity fell below 20% 2953 | -6/Factory | Destroyed by S-27 Virus with Autogun Last Messages --------------- 02933_ Gauss Cannon destroyed. 02933_ K-01 Serf collects debris. 02935_ Penetrated by Slug. 02935_ K-01 Serf collects debris. 02936_ Penetrated by Slug. 02936_ Slug penetrates Wall. 02937_ K-01 Serf collects debris. 02939_ Slug penetrates Wall. 02940_ K-01 Serf collects debris. 02940_ Penetrated by Slug. 02942_ K-01 Serf destroyed. 02942_ Slug penetrates Wall. 02942_ Plasma Cannon destroyed. 02942_ Slug penetrates Wall. 02944_ Acquired Wheel. 02945_ Acquired 19 matter. 02947_ U-05 Engineer lays Concrete. 02947_ R-10 Processor collects Autogun. 02948_ Slug penetrates Wall. 02950_ T-07 Excavator is excavating. Map ----- +----------------------------------------------------+ | ?????????????????????????????????????????????????? | | ?????????????????????????????????????????????????? | | ?????????????????????????????????????????????????? | | ?????????????????????????????????????????????????? | | ?????????????????????????????????????????????????? | | ?????????????????????????????????????????????????? | | ?????????????????????????????????????????????????? | | ?????????????????????????????????????????????????? | | ?????????????????????????????????????????????????? | | ?????????????????????????????????????????????????? | | ?????????????????????????????????????????????????? | | ????????????????????? ?????????????????????????? | | ??????????????????? ?????????????????????????? | | ?????????????????? ?????????????????????????? | | ??????????????????# ?????????????????????????? | | ??????????????????# ?????????????????????????? | | ??????????????????# ?????????????????????????? | | ??????????????????# ?????????????????????????? | | ??????????????????# ##############???????????? | | ??????????????????# # #???????????? | | ??????????????????# # "" #???????????? | | ??????????????????# # ""S #???????????? | | ?????????########## # "" #???????????? | | ????????? s s # #???????????? | | ???????? # """"""""" #???????????? | | ???????? s s /@ #???????????? | | ???????? # """"""""" ????????????? | | ???????? # ???????????????? | | ??????????############# # """""""""??????????????? | | ??????????????????????# # ??????????????? | | ??????????????????????# # ???????????????? | | ????????????????#######+##########???????????????? | | ????????????????# #???????????????????? | | ????????????????# #???????????????????? | | ????????????????# #???????????????????? | | ????????????????# #???????????????????? | | ????????????????# ###############?????? | | ????????????????# ## #?????? | | ????????????????# =%* ## #?????? | | ????????????????# ## #?????? | | ????????????????# ## #?????? | | ????????????????# ## #?????? | | ????????????????######%"####### #?????? | | ????????????????????# #???# #?????? | | ????????????????????# #???# #?????? | | ????????? ?????????# " #???# #???### | | ???????? ##### % ##### #???# | | ???????? / # ## #???# | | ???????? ##### " ## #???# | | ?????????##?????????# """"##+####+##### | +----------------------------------------------------+ Best States ------------- Heat Dissipation 48 Coolant Potential 65 Energy Generation 29 Energy Capacity 685 Matter Stores 300 Matter Capacity 300 Sight Range 16 Robot Scan Range 16 Terrain Scan Density 10 Additional Mass Support 12 Armor Coverage 150 Resistance: KI 20 Resistance: TH 20 Resistance: EX 20 Resistance: EM 20 Resistance: I 20 Resistance: S 20 Resistance: P 20 Evasion (%) 65 Recoil Reduction 4 Offensive Hacking 10 Item Schematics ----------------- Recoil Stabilizer | -9/Materials | Scanalyzed Robot Schematics ------------------ None Fabricated ------------ Energy Well | x2 | -7/Factory | Preloaded Alien Tech Used ----------------- None Achievements -------------- None Challenges ------------ None Game ------ Seed ShadeChromaticCapacitor Manual? 0 Play Time 00:48:36 Cumulative 93.6 hours Start 2021.09.21 @ 17:12:24 End 2021.09.21 @ 18:17:41 Sessions 1 Manual Loads 0 Difficulty Adventurer Special Mode None Game No. 68 Rogue 0 Adventurer 68 Explorer 0 Win Type - Total 0 Types 0/0/0/0/0/0/0/0/0 Lore% 36 Gallery% 54 Achievement% 38 Wizard Run 0 Options --------- ASCII 0 Keyboard 0 Movement Mouse Keybinds 0 Fullscreen 2 Font 18/SmallcapsGlow Map View 76x50 Tactical HUD 1 Map Filters NONE Filters NONE Steam 1 RUN: 434cd07f-2221-4374-8113-9b069c5eb780